[Event "DMP Ekstraliga 2020"]
[Site "Krakow"]
[Date "2020.09.01"]
[Round "7.29"]
[White "Gdanski, Jacek"]
[Black "Sliwerski, Radoslaw"]
[Result "1-0"]
[ECO "A13"]
[WhiteElo "2489"]
[BlackElo "2042"]
[Annotator "RC"]
[PlyCount "129"]
[EventDate "2020.08.26"]
[EventType "team-tourn"]
[EventCountry "POL"]
[SourceTitle "playchess.com"]
[Source "ChessBase"]
[SourceQuality "1"]
[WhiteTeam "HETMAN Katowice"]
[BlackTeam "Wrzos Miedzyborow"]
[WhiteTeamCountry "POL"]
[TimeControl "30/5400+30:1800+30"]

1. Nf3 {[%emt 0:00:00]} d5 {[%emt 0:05:32]} 2. c4 {[%emt 0:00:00]} e6 {[%emt 0:00:37]} 3. g3 {[%emt 0:00:04]} Nf6 {[%emt 0:00:08]} 4. Bg2 {[%emt 0:00:08]} c5 {[%emt 0:03:44]} 5. cxd5 {[%emt 0:04:59]} exd5 {[%emt 0:03:46]} 6. d4 {[%emt 0:00:07]} Nc6 {[%emt 0:04:29]} 7. O-O {[%emt 0:00:09]} b6 {[%emt 0:01:57]} 8. Nc3 {[%emt 0:01:27]} Be7 {[%emt 0:06:12]} 9. Bg5 {[%emt 0:20:00]} Be6 {[%emt 0:44:27]} 10. Ne5 {[%emt 0:03:23]} Nxd4 {[%emt 0:00:58]} 11. e3 {[%emt 0:01:35]} Nf5 {[%emt 0:00:06]} 12. Qa4+ {[%emt 0:07:41]} Kf8 {[%emt 0:09:18]} 13. Rad1 {[%emt 0:08:24]} Qe8 {[%emt 0:01:26]} 14. Qxe8+ {[%emt 0:13:12]} Rxe8 {[%emt 0:01:27]} 15. Nc6 {[%emt 0:00:22]} d4 {[%emt 0:05:56]} 16. exd4 {[%emt 0:01:52]} cxd4 {[%emt 0:00:18]} 17. Nxd4 {[%emt 0:00:23]} Nxd4 {[%emt 0:00:40]} 18. Rxd4 {[%emt 0:00:06]} Bc5 {[%emt 0:00:26]} 19. Rd2 {[%emt 0:00:31]} h6 {[%emt 0:01:04]} 20. Bxf6 {[%emt 0:06:25]} gxf6 {[%emt 0:00:01]} 21. a3 {[%emt 0:00:11]} f5 {[%emt 0:02:40]} 22. b4 {[%emt 0:04:45]} Be7 {[%emt 0:00:13]} 23. Nd5 {[%emt 0:00:20]} Rd8 {[%emt 0:01:08]} 24. Rfd1 {[%emt 0:00:41]} Bxd5 {[%emt 0:00:59]} 25. Rxd5 {[%emt 0:02:38]} Kg7 {[%emt 0:00:20]} 26. Bf3 {[%emt 0:01:11]} Kf6 {[%emt 0:00:34]} 27. Rd7 {[%emt 0:01:40]} Rxd7 {[%emt 0:03:26]} 28. Rxd7 {[%emt 0:00:02]} a5 {[%emt 0:00:19]} 29. Rb7 {[%emt 0:00:05]} Bd8 {[%emt 0:00:12]} 30. Bd5 {[%emt 0:01:07]} Rf8 {[%emt 0:00:03]} 31. Kg2 {[%emt 0:34:03]} axb4 {[%emt 0:30:07]} 32. axb4 {[%emt 0:00:04]} f4 {[%emt 0:01:24]} 33. gxf4 {[%emt 0:05:12]} h5 {[%emt 0:00:10]} 34. Kf3 {[%emt 0:00:20]} h4 {[%emt 0:00:30]} 35. h3 {[%emt 0:06:38]} Kg6 {[%emt 0:00:40]} 36. Rd7 {[%emt 0:00:21]} Bf6 {[%emt 0:00:37]} 37. Rd6 {[%emt 0:00:55]} Rb8 {[%emt 0:00:14]} 38. Kg4 {[%emt 0:00:40]} Kg7 {[%emt 0:00:35]} 39. Rd7 {[%emt 0:01:35]} Rf8 {[%emt 0:00:14]} 40. f3 {[%emt 0:00:00]} Bc3 {[%emt 0:00:00]} 41. b5 {[%emt 0:00:00]} Be1 {[%emt 0:00:00]} 42. Rb7 {[%emt 0:00:00]} Bf2 {[%emt 0:00:00]} 43. Kg5 {[%emt 0:00:00]} Be3 {[%emt 0:00:00]} 44. Bb3 {[%emt 0:00:00]} Bf2 {[%emt 0:00:00]} 45. f5 {[%emt 0:00:00]} Be3+ {[%emt 0:00:00]} 46. f4 {[%emt 0:00:00]} Bd4 {[%emt 0:00:00]} 47. Rd7 {[%emt 0:00:00]} Bf6+ {[%emt 0:00:00]} 48. Kg4 {[%emt 0:00:00]} Kh6 {[%emt 0:00:00]} 49. Kf3 {[%emt 0:00:00]} Kg7 {[%emt 0:00:00]} 50. Bd5 {[%emt 0:00:00]} Bd8 {[%emt 0:00:00]} 51. Kg4 {[%emt 0:00:00]} Bf6 {[%emt 0:00:00]} 52. Rb7 {[%emt 0:00:00]} Bd4 {[%emt 0:00:00]} 53. Kxh4 {[%emt 0:00:00]} Kf6 {[%emt 0:00:21]} 54. Kg4 {[%emt 0:00:00]} Rg8+ {[%emt 0:00:19]} 55. Kf3 {[%emt 0:00:00]} Rg7 {[%emt 0:00:22]} 56. Ke4 {[%emt 0:00:00]} Bc5 {[%emt 0:00:07]} 57. h4 {[%emt 0:00:00]} Rh7 {[%emt 0:00:07]} 58. h5 {[%emt 0:00:00]} Bg1 {[%emt 0:00:44]} 59. h6 {[%emt 0:01:57]} Bc5 {[%emt 0:01:30]} 60. Kf3 {[%emt 0:01:51]} Bg1 {[%emt 0:02:09]} 61. Ke4 {[%emt 0:04:15]} Bc5 {[%emt 0:00:36]} 62. Kd3 Bg1 {[%emt 0:00:22]} 63. Rc7 {[%emt 0:00:50]} Bc5 {[%emt 0:02:35]} 64. Rc6+ {[%emt 0:00:44]} Ke7 {[%emt 0:00:10]} 65. f6+ {[%emt 0:00:55]} 1-0

[Event "DMP Ekstraliga 2020"]
[Site "Krakow"]
[Date "2020.09.02"]
[Round "8.2"]
[White "Cyborowski, Lukasz"]
[Black "Piorun, Kacper"]
[Result "0-1"]
[ECO "A14"]
[WhiteElo "2508"]
[BlackElo "2596"]
[Annotator "RC"]
[PlyCount "136"]
[EventDate "2020.08.26"]
[EventType "team-tourn"]
[EventCountry "POL"]
[SourceTitle "playchess.com"]
[Source "ChessBase"]
[SourceQuality "1"]
[WhiteTeam "Wrzos Miedzyborow"]
[BlackTeam "Stilon Gorzow"]
[BlackTeamCountry "POL"]
[TimeControl "30/5400+30:1800+30"]

1. Nf3 {[%emt 0:00:00]} Nf6 {[%emt 0:00:00]} 2. c4 {[%emt 0:00:54]} e6 {[%emt 0:00:00]} 3. g3 {[%emt 0:01:24]} d5 {[%emt 0:00:06]} 4. Bg2 {[%emt 0:00:06]} Be7 {[%emt 0:00:27]} 5. O-O {[%emt 0:00:38]} O-O {[%emt 0:00:15]} 6. d4 {[%emt 0:04:50]} dxc4 {[%emt 0:02:42]} 7. Qa4 {[%emt 0:03:25]} Qd5 {[%emt 0:06:24]} 8. Nc3 {[%emt 0:15:23]} Qc6 {[%emt 0:00:06]} 9. Qc2 {[%emt 0:00:21]} Qa6 {[%emt 0:00:48]} 10. Ne5 {[%emt 0:09:56]} Rd8 {[%emt 0:02:12]} 11. Ne4 {[%emt 0:13:12]} Nc6 {[%emt 0:09:31]} 12. Nxc6 {[%emt 0:02:29]} bxc6 {[%emt 0:00:04]} 13. Bg5 {[%emt 0:14:46]} Rxd4 {[%emt 0:05:44]} 14. e3 {[%emt 0:00:17]} Rd8 {[%emt 0:07:23]} 15. Bxf6 {[%emt 0:05:18]} Bxf6 {[%emt 0:02:51]} 16. Rfd1 {[%emt 0:03:34]} Rxd1+ {[%emt 0:02:07]} 17. Rxd1 {[%emt 0:04:43]} Be7 {[%emt 0:02:12]} 18. Nd2 {[%emt 0:00:52]} Qxa2 {[%emt 0:04:39]} 19. Nxc4 {[%emt 0:00:24]} Rb8 {[%emt 0:05:56]} 20. Ne5 {[%emt 0:12:40]} Qxb2 {[%emt 0:04:24]} 21. Qxb2 {[%emt 0:04:03]} Rxb2 {[%emt 0:00:02]} 22. Nxc6 {[%emt 0:00:13]} Kf8 {[%emt 0:10:26]} 23. Nxa7 {[%emt 0:00:19]} Ba6 {[%emt 0:01:41]} 24. Nc6 {[%emt 0:00:34]} Bd6 {[%emt 0:01:02]} 25. Ra1 {[%emt 0:00:25]} Bb7 {[%emt 0:02:37]} 26. Na5 {[%emt 0:00:29]} Bxg2 {[%emt 0:08:21]} 27. Kxg2 {[%emt 0:00:04]} Rc2 {[%emt 0:00:11]} 28. Ra4 {[%emt 0:00:02]} Ke7 {[%emt 0:01:16]} 29. Nc4 {[%emt 0:01:24]} Bc5 {[%emt 0:00:17]} 30. g4 {[%emt 0:00:34]} f6 {[%emt 0:02:24]} 31. Kf3 {[%emt 0:30:57]} Kd7 {[%emt 0:31:37]} 32. Na5 {[%emt 0:00:36]} Bd6 {[%emt 0:03:47]} 33. h3 {[%emt 0:00:28]} g6 {[%emt 0:02:53]} 34. Nc4 {[%emt 0:00:54]} Bc5 {[%emt 0:00:50]} 35. Na5 {[%emt 0:00:33]} e5 {[%emt 0:02:38]} 36. Rc4 {[%emt 0:00:35]} Rxc4 {[%emt 0:00:46]} 37. Nxc4 {[%emt 0:00:02]} Ke6 {[%emt 0:03:19]} 38. e4 {[%emt 0:00:40]} Bd4 {[%emt 0:00:50]} 39. Ke2 {[%emt 0:00:22]} f5 {[%emt 0:03:09]} 40. exf5+ {[%emt 0:00:00]} gxf5 {[%emt 0:00:00]} 41. f3 {[%emt 0:00:00]} Kf6 {[%emt 0:00:00]} 42. Na5 {[%emt 0:00:00]} c5 {[%emt 0:00:00]} 43. Nc4 {[%emt 0:00:00]} Kg5 {[%emt 0:00:00]} 44. Nd6 {[%emt 0:00:00]} fxg4 {[%emt 0:00:00]} 45. hxg4 {[%emt 0:00:00]} Kf4 {[%emt 0:00:00]} 46. Nc4 {[%emt 0:01:33]} e4 {[%emt 0:00:00]} 47. fxe4 {[%emt 0:00:18]} Kxg4 {[%emt 0:00:00]} 48. e5 {[%emt 0:02:19]} Kf5 {[%emt 0:00:00]} 49. Kf3 {[%emt 0:00:56]} Bxe5 {[%emt 0:00:00]} 50. Ne3+ {[%emt 0:00:37]} Ke6 {[%emt 0:03:32]} 51. Kg4 {[%emt 0:00:46]} Bd4 {[%emt 0:01:16]} 52. Nc4 {[%emt 0:00:16]} Kd5 {[%emt 0:00:39]} 53. Nb6+ {[%emt 0:00:04]} Ke4 {[%emt 0:00:12]} 54. Kh5 {[%emt 0:00:17]} Be3 {[%emt 0:00:28]} 55. Nc4 {[%emt 0:01:17]} Kd4 {[%emt 0:01:40]} 56. Na5 {[%emt 0:00:26]} Kd3 {[%emt 0:00:36]} 57. Nc6 {[%emt 0:00:32]} Bf4 {[%emt 0:02:45]} 58. Kg4 {[%emt 0:00:32]} Bc7 {[%emt 0:00:39]} 59. Kh5 {[%emt 0:00:35]} c4 {[%emt 0:01:03]} 60. Nb4+ {[%emt 0:00:17]} Kd4 {[%emt 0:00:38]} 61. Nc2+ {[%emt 0:00:38]} Kd3 {[%emt 0:00:15]} 62. Nb4+ {[%emt 0:00:05]} Ke4 {[%emt 0:00:26]} 63. Kh6 {[%emt 0:01:01]} Bd6 {[%emt 0:00:11]} 64. Nc2 {[%emt 0:00:07]} Bc5 {[%emt 0:01:10]} 65. Kxh7 {[%emt 0:00:16]} Kd3 {[%emt 0:00:04]} 66. Ne1+ {[%emt 0:00:04]} Ke2 {[%emt 0:00:04]} 67. Ng2 {[%emt 0:00:40]} c3 {[%emt 0:00:05]} 68. Nf4+ {[%emt 0:00:04]} Kd2 {[%emt 0:00:07]} 0-1

[Event "DMP Ekstraliga 2020"]
[Site "Krakow"]
[Date "2020.09.02"]
[Round "8.5"]
[White "Janik, Igor"]
[Black "Sliwerski, Radoslaw"]
[Result "1-0"]
[ECO "B51"]
[WhiteElo "2471"]
[BlackElo "2042"]
[Annotator "ChessBase"]
[PlyCount "59"]
[EventDate "2020.08.26"]
[EventType "team-tourn"]
[EventCountry "POL"]
[SourceTitle "playchess.com"]
[Source "ChessBase"]
[SourceQuality "1"]
[WhiteTeam "Stilon Gorzow"]
[BlackTeam "Wrzos Miedzyborow"]
[TimeControl "30/5400+30:1800+30"]

1. e4 {[%emt 0:00:00]} c5 {[%emt 0:00:00]} 2. Nf3 {[%emt 0:00:00]} d6 {[%emt 0:00:00]} 3. Bb5+ {[%emt 0:00:00]} Nd7 {[%emt 0:00:15]} 4. O-O {[%emt 0:00:00]} a6 {[%emt 0:00:37]} 5. Bd3 {[%emt 0:00:00]} Ngf6 {[%emt 0:00:21]} 6. Re1 {[%emt 0:00:03]} g6 {[%emt 0:00:31]} 7. a4 {[%emt 0:00:12]} Bh6 {[%emt 0:06:17]} 8. c3 {[%emt 0:01:09]} Ne5 {[%emt 0:00:07]} 9. Nxe5 {[%emt 0:00:54]} dxe5 {[%emt 0:00:02]} 10. Bc4 {[%emt 0:00:31]} O-O {[%emt 0:01:16]} 11. d3 {[%emt 0:01:08]} Bxc1 {[%emt 0:01:06]} 12. Qxc1 {[%emt 0:00:03]} Qd6 {[%emt 0:01:25]} 13. Qg5 {[%emt 0:05:03]} Bd7 {[%emt 0:05:39]} 14. f4 {[%emt 0:02:58]} b5 {[%emt 0:33:26]} 15. axb5 {[%emt 0:01:56]} axb5 {[%emt 0:01:38]} 16. Rxa8 {[%emt 0:00:11]} Rxa8 {[%emt 0:00:11]} 17. fxe5 {[%emt 0:00:05]} Qc6 {[%emt 0:04:22]} 18. Bxf7+ {[%emt 0:04:25]} Kxf7 {[%emt 0:00:12]} 19. exf6 {[%emt 0:00:03]} exf6 {[%emt 0:00:25]} 20. Qh4 {[%emt 0:00:07]} Kg8 {[%emt 0:04:35]} 21. Nd2 {[%emt 0:04:27]} Qd6 {[%emt 0:10:02]} 22. e5 {[%emt 0:00:53]} fxe5 {[%emt 0:06:59]} 23. Ne4 {[%emt 0:00:17]} Qxd3 {[%emt 0:06:24]} 24. Qe7 {[%emt 0:00:18]} Rf8 {[%emt 0:04:28]} 25. Nf6+ {[%emt 0:00:06]} Rxf6 {[%emt 0:00:25]} 26. Qxf6 {[%emt 0:00:02]} e4 {[%emt 0:03:08]} 27. Qd8+ {[%emt 0:00:11]} Kf7 {[%emt 0:02:14]} 28. Rf1+ {[%emt 0:00:04]} Bf5 {[%emt 0:00:05]} 29. Qxd3 {[%emt 0:00:06]} exd3 {[%emt 0:00:11]} 30. g4 {[%emt 0:00:05]} 1-0

[Event "DMP Ekstraliga 2020"]
[Site "Krakow"]
[Date "2020.09.02"]
[Round "8.6"]
[White "Kulon, Klaudia"]
[Black "Antolak, Julia"]
[Result "1/2-1/2"]
[ECO "A45"]
[WhiteElo "2336"]
[BlackElo "2323"]
[Annotator "ChessBase"]
[PlyCount "65"]
[EventDate "2020.08.26"]
[EventType "team-tourn"]
[EventCountry "POL"]
[SourceTitle "playchess.com"]
[Source "ChessBase"]
[SourceQuality "1"]
[WhiteTeam "Wrzos Miedzyborow"]
[BlackTeam "Stilon Gorzow"]
[TimeControl "30/5400+30:1800+30"]

1. d4 {[%emt 0:00:00]} Nf6 {[%emt 0:00:00]} 2. Bf4 {[%emt 0:00:00]} b6 {[%emt 0:00:17]} 3. Nf3 {[%emt 0:00:00]} Bb7 {[%emt 0:00:30]} 4. e3 {[%emt 0:00:02]} g6 {[%emt 0:01:00]} 5. h3 {[%emt 0:00:13]} Bg7 {[%emt 0:00:06]} 6. Bd3 {[%emt 0:00:12]} O-O {[%emt 0:01:50]} 7. O-O {[%emt 0:00:28]} c5 {[%emt 0:00:28]} 8. c3 {[%emt 0:00:23]} d6 {[%emt 0:00:39]} 9. Nbd2 {[%emt 0:00:33]} Nbd7 {[%emt 0:00:28]} 10. Bh2 {[%emt 0:00:54]} a6 {[%emt 0:00:17]} 11. a4 {[%emt 0:00:56]} Ra7 {[%emt 0:00:47]} 12. Qe2 {[%emt 0:03:47]} Qa8 {[%emt 0:21:28]} 13. e4 {[%emt 0:02:20]} cxd4 {[%emt 0:03:43]} 14. cxd4 {[%emt 0:00:20]} e5 {[%emt 0:02:20]} 15. d5 {[%emt 0:06:58]} a5 {[%emt 0:01:27]} 16. Nc4 {[%emt 0:01:39]} Qb8 {[%emt 0:05:44]} 17. Rfb1 {[%emt 0:05:57]} Ba6 {[%emt 0:07:09]} 18. b4 {[%emt 0:07:38]} Bxc4 {[%emt 0:06:38]} 19. Bxc4 {[%emt 0:00:19]} Qd8 {[%emt 0:02:44]} 20. Nd2 {[%emt 0:01:35]} Bh6 {[%emt 0:04:32]} 21. Bd3 {[%emt 0:02:18]} Bxd2 {[%emt 0:04:48]} 22. Qxd2 {[%emt 0:00:06]} axb4 {[%emt 0:00:13]} 23. Rxb4 {[%emt 0:00:09]} Nc5 {[%emt 0:00:06]} 24. Bc2 {[%emt 0:00:22]} Nfd7 {[%emt 0:01:22]} 25. f4 {[%emt 0:02:21]} f6 {[%emt 0:01:39]} 26. h4 {[%emt 0:03:05]} Qe7 {[%emt 0:01:13]} 27. Rf1 {[%emt 0:07:24]} Rfa8 {[%emt 0:02:18]} 28. Qd1 {[%emt 0:00:25]} Na6 {[%emt 0:05:34]} 29. Rc4 {[%emt 0:00:18]} Nac5 {[%emt 0:00:03]} 30. g4 {[%emt 0:03:58]} Ra5 {[%emt 0:03:26]} 31. Rb4 {[%emt 0:39:36]} Na6 {[%emt 0:30:10]} 32. Rc4 {[%emt 0:00:05]} Nac5 {[%emt 0:00:03]} 33. Rb4 {[%emt 0:00:06]} 1/2-1/2

[Event "DMP Ekstraliga 2020"]
[Site "Krakow"]
[Date "2020.09.02"]
[Round "8.11"]
[White "Wieczorek, Oskar"]
[Black "Sadzikowski, Daniel"]
[Result "0-1"]
[ECO "C25"]
[WhiteElo "2493"]
[BlackElo "2522"]
[Annotator "RC"]
[PlyCount "116"]
[EventDate "2020.08.26"]
[EventType "team-tourn"]
[EventCountry "POL"]
[SourceTitle "playchess.com"]
[Source "ChessBase"]
[SourceQuality "1"]
[WhiteTeam "Polonia Wroclaw"]
[BlackTeam "HETMAN Katowice"]
[TimeControl "30/5400+30:1800+30"]

1. e4 {[%emt 0:00:01]} e5 {[%emt 0:00:00]} 2. Nc3 {[%emt 0:00:08]} Nc6 {[%emt 0:01:35]} 3. g3 {[%emt 0:00:04]} Bc5 {[%emt 0:00:03]} 4. Bg2 {[%emt 0:00:08]} a6 {[%emt 0:02:28]} 5. d3 {[%emt 0:04:17]} d6 {[%emt 0:00:24]} 6. Nge2 {[%emt 0:01:22]} Nge7 {[%emt 0:03:06]} 7. O-O {[%emt 0:09:03]} O-O {[%emt 0:15:37]} 8. Nd5 {[%emt 0:05:38]} f5 {[%emt 0:06:33]} 9. exf5 {[%emt 0:19:06]} Bxf5 {[%emt 0:16:53]} 10. Be3 {[%emt 0:02:35]} Bg4 {[%emt 0:09:59]} 11. Bxc5 {[%emt 0:07:41]} dxc5 {[%emt 0:00:09]} 12. Ne3 {[%emt 0:03:37]} Bh5 {[%emt 0:02:03]} 13. Qd2 {[%emt 0:19:30]} Qd7 {[%emt 0:00:46]} 14. f4 {[%emt 0:04:39]} Bxe2 {[%emt 0:01:09]} 15. Qxe2 {[%emt 0:00:16]} exf4 {[%emt 0:00:13]} 16. Rxf4 {[%emt 0:03:23]} Rxf4 {[%emt 0:10:36]} 17. gxf4 {[%emt 0:00:02]} Rf8 {[%emt 0:01:00]} 18. Rf1 {[%emt 0:01:14]} Nd4 {[%emt 0:03:36]} 19. Qh5 {[%emt 0:03:18]} b6 {[%emt 0:00:01]} 20. Be4 {[%emt 0:04:56]} Ndf5 {[%emt 0:00:43]} 21. Nxf5 {[%emt 0:00:30]} Nxf5 {[%emt 0:00:05]} 22. Kh1 {[%emt 0:01:28]} g6 {[%emt 0:01:46]} 23. Qh3 {[%emt 0:01:24]} Qd4 {[%emt 0:01:03]} 24. c3 {[%emt 0:00:37]} Qd6 {[%emt 0:00:26]} 25. Qf3 {[%emt 0:03:24]} Kg7 {[%emt 0:00:02]} 26. a3 {[%emt 0:00:42]} a5 {[%emt 0:00:04]} 27. Qh3 {[%emt 0:01:13]} Qe7 {[%emt 0:02:51]} 28. Qf3 {[%emt 0:02:03]} Nd6 {[%emt 0:02:11]} 29. Qg2 {[%emt 0:00:19]} Kh8 {[%emt 0:04:40]} 30. Bd5 {[%emt 0:00:34]} Qf6 {[%emt 0:04:09]} 31. Qg4 {[%emt 0:31:09]} Re8 {[%emt 0:30:52]} 32. Qg5 {[%emt 0:00:50]} Kg7 {[%emt 0:02:05]} 33. Qg4 {[%emt 0:00:03]} Nf5 {[%emt 0:00:37]} 34. Qf3 {[%emt 0:00:44]} Re3 {[%emt 0:01:42]} 35. Qf2 {[%emt 0:00:02]} Rxd3 {[%emt 0:00:57]} 36. Be4 {[%emt 0:00:04]} Rd7 {[%emt 0:00:46]} 37. Bg2 {[%emt 0:00:17]} Re7 {[%emt 0:00:36]} 38. Re1 {[%emt 0:00:11]} Qd6 {[%emt 0:00:45]} 39. Rxe7+ {[%emt 0:00:09]} Qxe7 {[%emt 0:00:05]} 40. Bh3 {[%emt 0:00:00]} Qe3 {[%emt 0:00:00]} 41. Qf1 {[%emt 0:00:00]} Kf6 {[%emt 0:00:00]} 42. Bxf5 {[%emt 0:00:00]} Kxf5 {[%emt 0:00:00]} 43. Qd1 {[%emt 0:00:00]} Qf2 {[%emt 0:00:00]} 44. Qd7+ {[%emt 0:00:00]} Ke4 {[%emt 0:00:00]} 45. h3 {[%emt 0:00:00]} Qf1+ {[%emt 0:00:00]} 46. Kh2 {[%emt 0:00:00]} Qxf4+ {[%emt 0:00:00]} 47. Kg2 {[%emt 0:00:00]} Qg5+ {[%emt 0:00:00]} 48. Kh2 {[%emt 0:00:00]} Kf3 {[%emt 0:00:00]} 49. Qd1+ {[%emt 0:00:00]} Kf2 {[%emt 0:00:00]} 50. Qc2+ {[%emt 0:00:00]} Ke1 {[%emt 0:00:00]} 51. Qe4+ {[%emt 0:00:00]} Kd2 {[%emt 0:00:00]} 52. c4 {[%emt 0:00:00]} Qe3 {[%emt 0:00:00]} 53. Qd5+ {[%emt 0:00:00]} Ke2 {[%emt 0:00:00]} 54. Qd7 {[%emt 0:00:00]} Qf2+ {[%emt 0:00:00]} 55. Kh1 {[%emt 0:00:00]} Qf3+ {[%emt 0:00:00]} 56. Kg1 {[%emt 0:00:00]} Qg3+ {[%emt 0:00:00]} 57. Kh1 {[%emt 0:00:00]} h5 {[%emt 0:00:00]} 58. a4 {[%emt 0:00:00]} g5 {[%emt 0:00:00]} 0-1

[Event "DMP Ekstraliga 2020"]
[Site "Krakow"]
[Date "2020.09.02"]
[Round "8.12"]
[White "Socko, Monika"]
[Black "Zawadzka, Jolanta"]
[Result "1/2-1/2"]
[ECO "A06"]
[WhiteElo "2428"]
[BlackElo "2419"]
[Annotator "ChessBase"]
[PlyCount "97"]
[EventDate "2020.08.26"]
[EventType "team-tourn"]
[EventCountry "POL"]
[SourceTitle "playchess.com"]
[Source "ChessBase"]
[SourceQuality "1"]
[WhiteTeam "HETMAN Katowice"]
[BlackTeam "Polonia Wroclaw"]
[TimeControl "30/5400+30:1800+30"]

1. Nf3 {[%emt 0:00:00]} d5 {[%emt 0:00:00]} 2. g3 {[%emt 0:00:00]} Nd7 {[%emt 0:00:00]} 3. d4 {[%emt 0:01:14]} b5 {[%emt 0:00:00]} 4. Bg2 {[%emt 0:01:20]} e6 {[%emt 0:00:18]} 5. O-O {[%emt 0:01:10]} Ngf6 {[%emt 0:00:12]} 6. b3 {[%emt 0:02:11]} Be7 {[%emt 0:03:23]} 7. Bb2 {[%emt 0:05:39]} O-O {[%emt 0:03:55]} 8. Nbd2 {[%emt 0:04:26]} Rb8 {[%emt 0:07:39]} 9. a4 {[%emt 0:04:51]} b4 {[%emt 0:03:35]} 10. c4 {[%emt 0:04:22]} bxc3 {[%emt 0:02:33]} 11. Bxc3 {[%emt 0:00:16]} c5 {[%emt 0:01:00]} 12. Qc2 {[%emt 0:00:31]} Ba6 {[%emt 0:06:24]} 13. Rfe1 {[%emt 0:02:01]} Qb6 {[%emt 0:02:42]} 14. a5 {[%emt 0:03:36]} Qc7 {[%emt 0:07:04]} 15. Qb2 {[%emt 0:16:43]} Rfc8 {[%emt 0:10:43]} 16. dxc5 {[%emt 0:04:27]} Bxc5 {[%emt 0:00:15]} 17. e3 {[%emt 0:01:23]} Qd6 {[%emt 0:04:56]} 18. e4 {[%emt 0:07:36]} Ng4 {[%emt 0:07:09]} 19. Bd4 {[%emt 0:02:35]} e5 {[%emt 0:08:29]} 20. Bh3 {[%emt 0:11:07]} Bxd4 {[%emt 0:07:13]} 21. Nxd4 {[%emt 0:00:04]} Nxf2 {[%emt 0:00:51]} 22. Kxf2 {[%emt 0:00:53]} exd4 {[%emt 0:00:10]} 23. Bxd7 {[%emt 0:00:43]} Qxd7 {[%emt 0:00:12]} 24. Qxd4 {[%emt 0:02:32]} Qh3 {[%emt 0:02:29]} 25. Kg1 {[%emt 0:00:04]} dxe4 {[%emt 0:00:32]} 26. Rxe4 {[%emt 0:00:37]} Bb7 {[%emt 0:02:07]} 27. Re2 {[%emt 0:00:03]} Qh6 {[%emt 0:02:01]} 28. Rae1 {[%emt 0:03:38]} Qc6 {[%emt 0:00:46]} 29. Qe4 {[%emt 0:00:14]} Qc5+ {[%emt 0:04:30]} 30. Qe3 {[%emt 0:00:06]} Qc6 {[%emt 0:00:10]} 31. Qe4 {[%emt 0:30:04]} Qxe4 {[%emt 0:31:04]} 32. Nxe4 {[%emt 0:00:07]} Bd5 {[%emt 0:00:26]} 33. Nd6 {[%emt 0:05:48]} Rf8 {[%emt 0:00:13]} 34. Re7 {[%emt 0:03:19]} a6 {[%emt 0:00:41]} 35. Ra7 {[%emt 0:01:53]} Rxb3 {[%emt 0:00:42]} 36. Rxa6 {[%emt 0:00:15]} Rb2 {[%emt 0:00:22]} 37. Nf5 {[%emt 0:00:03]} Ba8 {[%emt 0:00:45]} 38. Ne3 {[%emt 0:01:32]} f5 {[%emt 0:02:55]} 39. Ra7 {[%emt 0:02:38]} Be4 {[%emt 0:02:59]} 40. Rc1 {[%emt 0:00:00]} g5 {[%emt 0:00:00]} 41. Re7 {[%emt 0:00:00]} Rf7 {[%emt 0:00:00]} 42. Rcc7 {[%emt 0:00:00]} Rxe7 {[%emt 0:00:00]} 43. Rxe7 {[%emt 0:00:00]} Ra2 {[%emt 0:01:13]} 44. Re5 {[%emt 0:00:00]} Kf7 {[%emt 0:00:27]} 45. Nxf5 {[%emt 0:00:00]} Kf6 {[%emt 0:00:19]} 46. Rxe4 {[%emt 0:00:00]} Kxf5 {[%emt 0:00:04]} 47. Re7 {[%emt 0:00:00]} Ra1+ {[%emt 0:00:58]} 48. Kf2 {[%emt 0:00:00]} h5 {[%emt 0:01:23]} 49. h3 {[%emt 0:00:00]} 1/2-1/2

[Event "DMP Ekstraliga 2020"]
[Site "Krakow"]
[Date "2020.09.02"]
[Round "8.18"]
[White "Sliwicka, Alicja"]
[Black "Worek, Joanna"]
[Result "1-0"]
[ECO "B56"]
[WhiteElo "2317"]
[BlackElo "2326"]
[Annotator "ChessBase"]
[PlyCount "111"]
[EventDate "2020.08.26"]
[EventType "team-tourn"]
[EventCountry "POL"]
[SourceTitle "playchess.com"]
[Source "ChessBase"]
[SourceQuality "1"]
[WhiteTeam "UKS 21 Podlesie"]
[BlackTeam "Silesia Raciborz"]
[TimeControl "30/5400+30:1800+30"]

1. e4 {[%emt 0:00:00]} c5 {[%emt 0:00:00]} 2. Nf3 {[%emt 0:00:00]} Nc6 {[%emt 0:00:00]} 3. d4 {[%emt 0:00:00]} cxd4 {[%emt 0:00:00]} 4. Nxd4 {[%emt 0:00:00]} Nf6 {[%emt 0:00:00]} 5. Nc3 {[%emt 0:00:01]} d6 {[%emt 0:00:08]} 6. Nb3 {[%emt 0:00:06]} a6 {[%emt 0:00:48]} 7. Be2 {[%emt 0:00:47]} b5 {[%emt 0:00:52]} 8. a4 {[%emt 0:06:57]} b4 {[%emt 0:06:08]} 9. Nd5 {[%emt 0:00:22]} e6 {[%emt 0:00:10]} 10. Nxf6+ {[%emt 0:00:48]} Qxf6 {[%emt 0:00:12]} 11. a5 {[%emt 0:01:19]} Be7 {[%emt 0:01:29]} 12. O-O {[%emt 0:02:34]} O-O {[%emt 0:00:10]} 13. f4 {[%emt 0:02:03]} Re8 {[%emt 0:03:13]} 14. e5 {[%emt 0:15:02]} dxe5 {[%emt 0:09:18]} 15. Bf3 {[%emt 0:01:41]} e4 {[%emt 0:03:06]} 16. Bxe4 {[%emt 0:00:21]} Bb7 {[%emt 0:05:07]} 17. Qd7 {[%emt 0:06:37]} Rab8 {[%emt 0:01:41]} 18. Bxc6 {[%emt 0:07:30]} Red8 {[%emt 0:00:18]} 19. Qc7 {[%emt 0:09:07]} Rdc8 {[%emt 0:03:31]} 20. Qxb7 {[%emt 0:00:14]} Rxb7 {[%emt 0:00:05]} 21. Bxb7 {[%emt 0:00:06]} Rxc2 {[%emt 0:00:03]} 22. Be4 {[%emt 0:01:30]} Rc7 {[%emt 0:04:14]} 23. Rb1 {[%emt 0:04:41]} g6 {[%emt 0:08:13]} 24. Be3 {[%emt 0:01:41]} e5 {[%emt 0:04:02]} 25. Bd5 {[%emt 0:07:42]} Bd6 {[%emt 0:02:45]} 26. Bb6 {[%emt 0:02:50]} exf4 {[%emt 0:12:33]} 27. Bxc7 {[%emt 0:00:31]} Bxc7 {[%emt 0:00:03]} 28. Rbc1 {[%emt 0:03:11]} Qe5 {[%emt 0:06:28]} 29. Bf3 {[%emt 0:03:57]} Bb8 {[%emt 0:02:20]} 30. Kh1 {[%emt 0:00:42]} Ba7 {[%emt 0:00:04]} 31. Nd2 {[%emt 0:32:41]} Qxb2 {[%emt 0:30:47]} 32. Nc4 {[%emt 0:00:18]} Qf6 {[%emt 0:02:06]} 33. Rfd1 {[%emt 0:00:59]} Bd4 {[%emt 0:00:39]} 34. Rb1 {[%emt 0:01:51]} Bc3 {[%emt 0:01:14]} 35. Nd6 {[%emt 0:01:19]} Qe7 {[%emt 0:01:35]} 36. Ne4 {[%emt 0:04:01]} Bg7 {[%emt 0:00:46]} 37. Rdc1 {[%emt 0:01:18]} Bf8 {[%emt 0:03:49]} 38. Rc6 {[%emt 0:01:04]} Qd8 {[%emt 0:00:02]} 39. Rb6 {[%emt 0:03:14]} Qd3 {[%emt 0:01:46]} 40. Rd1 {[%emt 0:00:00]} Qc4 {[%emt 0:00:00]} 41. Ng5 {[%emt 0:00:00]} Qc5 {[%emt 0:00:00]} 42. Bd5 {[%emt 0:00:00]} Qc2 {[%emt 0:00:00]} 43. Re1 {[%emt 0:00:00]} Qc3 {[%emt 0:00:00]} 44. Nf3 {[%emt 0:00:00]} Qd3 {[%emt 0:00:00]} 45. Bxf7+ {[%emt 0:00:00]} Kg7 {[%emt 0:00:00]} 46. Rb7 {[%emt 0:00:00]} Kh6 {[%emt 0:00:00]} 47. Bg8 {[%emt 0:00:00]} Bg7 {[%emt 0:00:00]} 48. Rxb4 {[%emt 0:00:00]} Qd8 {[%emt 0:00:00]} 49. Rxf4 {[%emt 0:00:00]} Bc3 {[%emt 0:00:00]} 50. Rc1 {[%emt 0:01:02]} Bxa5 {[%emt 0:00:00]} 51. Bc4 {[%emt 0:01:20]} Qd6 {[%emt 0:00:00]} 52. Rd4 {[%emt 0:00:16]} Qf6 {[%emt 0:04:47]} 53. Rcd1 {[%emt 0:00:54]} Qc6 {[%emt 0:01:29]} 54. Ne5 {[%emt 0:00:50]} Qc7 {[%emt 0:03:04]} 55. Rd5 {[%emt 0:03:07]} Qb6 {[%emt 0:01:43]} 56. Ng4+ {[%emt 0:00:21]} 1-0